Workbook

Sheet BootStrapping
A1: Yield | B1: Time to Maturity
A2: =3.45879959308242%/2 -> 0.01729399797 | B2: 6
A3: =4.51700180512445%/2 -> 0.02258500903 | B3: 12
A4: =5.48498818814233%/2 -> 0.02742494094 | B4: 18
A8: BootStrapping
A9: Present Value in 2 | B9: =[1]Yields!A3 -> 99.5 | C9: Yearly
A10: YTM (6 months) | B10: =A2 -> 0.01729399797 | C10: =B10*2 -> 0.03458799593
A11: YTM(12 months) | B11: 0.022641632 | C11: =B11*2 -> 0.04528326399
A12: Coupon | B12: =([1]Yields!B3/2)*100 -> 2
B14: 1 | C14: 2
A15: =B15+C15 -> 99.49937077 | B15: =B12/(1+B10)^B14 -> 1.966 | C15: =(B12+100)/(1+B11)^C14 -> 97.53337077
A20: Present Value in 3 | B20: =[1]Yields!A4 -> 98.6 | C20: Yearly
A21: YTM (6 months) | B21: =[1]Yields!C2/2 -> 0.01729399797 | C21: =B21*2 -> 0.03458799593
A22: YTM(12 months) | B22: 0.022641632 | C22: =B22*2 -> 0.04528326399
A23: YTM(18 months) | B23: 0.02757675355 | C23: =B23*2 -> 0.0551535071
A24: Coupon | B24: =([1]Yields!B4/2)*100 -> 2.25
B26: 1 | C26: 2 | D26: 3
A27: =B27+C27+D27 -> 98.60001573 | B27: =B24/(1+B21)^B26 -> 2.21175 | C27: =(B24)/(1+B22)^C26 -> 2.151471414 | D27: =(B24+100)/(1+B23)^D26 -> 94.23679432
B28: =B24/(1+B21)^B26

Sheet Path independent
A1: Obs Price | B1: 980
A2: Coupon | B2: 0.06 | G2: z-Spread | H2: =I2/100000 -> 0.00215 | I2: 215 | K2: Market Price | L2: =B1 -> 980
A3: Maturity (years) | B3: 20 | K3: Model Price | L3: =SUM(L7:L46) -> 980.020245
A4: Par | B4: 1000 | K4: Difference | L4: =L3-L2 -> 0.02024497367
A6: 1 | B6: 6 mo | C6: =D6/100000 -> 0.0007 | D6: 70 | G6: Payment | H6: CF | I6: Spot Rate | J6: z-Spread | K6: Discount Rate total | L6: PV(CF)
A7: 2 | B7: 1 yr | C7: =D7/100000 -> 0.0011 | D7: 110 | G7: 1 | H7: =($B$2/2)*$B$4 -> 30 | I7: =C6 -> 0.0007 | J7: =H2 -> 0.00215 | K7: =I7+J7 -> 0.00285 | L7: =H7/(1+K7)^G7 -> 29.91474298
A8: 4 | B8: 2 yr | C8: 0.0034 | D8: 340 | G8: 2 | H8: =($B$2/2)*$B$4 -> 30 | I8: =C7 -> 0.0011 | J8: =J7 -> 0.00215 | K8: =I8+J8 -> 0.00325 | L8: =H8/(1+K8)^G8 -> 29.80594652
A9: 6 | B9: 3 yr | C9: 0.0066 | D9: 660 | G9: 3 | H9: 30 | I9: =TREND(C7:C8,A7:A8,G9) -> 0.00225 | J9: =J8 -> 0.00215 | K9: 0.0044 | L9: 29.60745941
A10: 10 | B10: 5 yr | C10: 0.014 | D10: 1400 | G10: 4 | H10: 30 | I10: =C8 -> 0.0034 | J10: 0.00215 | K10: 0.00555 | L10: 29.34313917
A11: 14 | B11: 7 yr | C11: 0.0197 | D11: 1970 | G11: 5 | H11: 30 | I11: =TREND(C8:C9,A8:A9,G11) -> 0.005 | J11: 0.00215 | K11: 0.00715 | L11: 28.95012674
A12: 20 | B12: 10 yr | C12: 0.0257 | D12: 2570 | G12: 6 | H12: 30 | I12: =C9 -> 0.0066 | J12: 0.00215 | K12: 0.00875 | L12: 28.47213068
A13: 40 | B13: 20 yr | C13: 0.033 | D13: 3300 | G13: 7 | H13: 30 | I13: =TREND($C$9:$C$10,$A$9:$A$10,G13) -> 0.00845 | J13: 0.00215 | K13: 0.0106 | L13: 27.86545876
G14: 8 | H14: 30 | I14: =TREND($C$9:$C$10,$A$9:$A$10,G14) -> 0.0103 | J14: 0.00215 | K14: 0.01245 | L14: 27.17268642
G15: 9 | H15: 30 | I15: 0.01215 | J15: 0.00215 | K15: 0.0143 | L15: 26.40118531
G16: 10 | H16: 30 | I16: =C10 -> 0.014 | J16: 0.00215 | K16: 0.01615 | L16: 25.55895185
G17: 11 | H17: 30 | I17: =TREND($C$10:$C$11,$A$10:$A$11,G17) -> 0.015425 | J17: 0.00215 | K17: 0.017575 | L17: 24.76797725
G18: 12 | H18: 30 | I18: =TREND($C$10:$C$11,$A$10:$A$11,G18) -> 0.01685 | J18: 0.00215 | K18: 0.019 | L18: 23.93486855
G19: 13 | H19: 30 | I19: 0.018275 | J19: 0.00215 | K19: 0.020425 | L19: 23.06572359
G20: 14 | H20: 30 | I20: =C11 -> 0.0197 | J20: 0.00215 | K20: 0.02185 | L20: 22.16670619
G21: 15 | H21: 30 | I21: =TREND($C$11:$C$12,$A$11:$A$12,G21) -> 0.0207 | J21: 0.00215 | K21: 0.02285 | L21: 21.37676644
G22: 16 | H22: 30 | I22: =TREND($C$11:$C$12,$A$11:$A$12,G22) -> 0.0217 | J22: 0.00215 | K22: 0.02385 | L22: 20.57500269
G23: 17 | H23: 30 | I23: =TREND($C$11:$C$12,$A$11:$A$12,G23) -> 0.0227 | J23: 0.00215 | K23: 0.02485 | L23: 19.76496557
G24: 18 | H24: 30 | I24: =TREND($C$11:$C$12,$A$11:$A$12,G24) -> 0.0237 | J24: 0.00215 | K24: 0.02585 | L24: 18.95010953
G25: 19 | H25: 30 | I25: =TREND($C$11:$C$12,$A$11:$A$12,G25) -> 0.0247 | J25: 0.00215 | K25: 0.02685 | L25: 18.13377043
G26: 20 | H26: 30 | I26: =C12 -> 0.0257 | J26: 0.00215 | K26: 0.02785 | L26: 17.31914508
G27: 21 | H27: 30 | I27: =TREND($C$12:$C$13,$A$12:$A$13,G27) -> 0.026065 | J27: 0.00215 | K27: 0.028215 | L27: 16.72471072
G28: 22 | H28: 30 | I28: 0.02643 | J28: 0.00215 | K28: 0.02858 | L28: 16.13925908
G29: 23 | H29: 30 | I29: 0.026795 | J29: 0.00215 | K29: 0.028945 | L29: 15.56329498
G30: 24 | H30: 30 | I30: 0.02716 | J30: 0.00215 | K30: 0.02931 | L30: 14.99728501
G31: 25 | H31: 30 | I31: 0.027525 | J31: 0.00215 | K31: 0.029675 | L31: 14.44165761
G32: 26 | H32: 30 | I32: 0.02789 | J32: 0.00215 | K32: 0.03004 | L32: 13.89680329
G33: 27 | H33: 30 | I33: 0.028255 | J33: 0.00215 | K33: 0.030405 | L33: 13.36307496
G34: 28 | H34: 30 | I34: 0.02862 | J34: 0.00215 | K34: 0.03077 | L34: 12.84078843
G35: 29 | H35: 30 | I35: 0.028985 | J35: 0.00215 | K35: 0.031135 | L35: 12.33022296
G36: 30 | H36: 30 | I36: 0.02935 | J36: 0.00215 | K36: 0.0315 | L36: 11.83162198
G37: 31 | H37: 30 | I37: 0.029715 | J37: 0.00215 | K37: 0.031865 | L37: 11.3451938
G38: 32 | H38: 30 | I38: 0.03008 | J38: 0.00215 | K38: 0.03223 | L38: 10.87111256
G39: 33 | H39: 30 | I39: 0.030445 | J39: 0.00215 | K39: 0.032595 | L39: 10.40951913
G40: 34 | H40: 30 | I40: 0.03081 | J40: 0.00215 | K40: 0.03296 | L40: 9.960522163
G41: 35 | H41: 30 | I41: 0.031175 | J41: 0.00215 | K41: 0.033325 | L41: 9.524199182
G42: 36 | H42: 30 | I42: 0.03154 | J42: 0.00215 | K42: 0.03369 | L42: 9.100597744
G43: 37 | H43: 30 | I43: 0.031905 | J43: 0.00215 | K43: 0.034055 | L43: 8.689736649
G44: 38 | H44: 30 | I44: 0.03227 | J44: 0.00215 | K44: 0.03442 | L44: 8.29160719
G45: 39 | H45: 30 | I45: 0.032635 | J45: 0.00215 | K45: 0.034785 | L45: 7.906174453
G46: 40 | H46: =($B$2/2)*$B$4+B4 -> 1030 | I46: =C13 -> 0.033 | J46: 0.00215 | K46: 0.03515 | L46: 258.6459999
K47: Bond Price

Sheet Path Dependent
A1: Price | B1: 102.52 | C1: BondPrice | Q1: Market Price | R1: =BondPrice -> 102.52
A2: Coupon | B2: 0.0675 | C2: CouponRate | G2: Z-Spread | H2: =I2/1000000 -> 0.00383 | I2: 3830 | J2: ZSpread | Q2: Model Average Price | R2: =AveragePRice -> 102.5232912
A3: Maturity | B3: 20 | C3: Maturity | G3: Increment | H3: =I3/10000 -> 0.0009 | I3: 9 | J3: increment | Q3: Difference | R3: =R2-R1 -> 0.00329117447
A4: Par | B4: 100 | C4: ParValue
A6: 1 | B6: 6 mo | C6: =D6/100000 -> 0.0007 | D6: 70 | G6: Payment | H6: CF | I6: Path 1 | J6: Path 2 | K6: Path 3 | L6: z-Spread | M6: PV(CF)-Path 1 | N6: PV(CF)-Path 2 | O6: PV(CF)-Path 3
A7: 2 | B7: 1 yr | C7: =D7/100000 -> 0.00109 | D7: 109 | G7: 1 | H7: =(CouponRate/2)*ParValue -> 3.375 | I7: =SpotRate+increment -> 0.0016 | J7: =C6 -> 0.0007 | K7: =SpotRate-increment -> -0.0002 | L7: =ZSpread -> 0.00383 | M7: =CF/(1+z_Spread+Path_1)^Payment_number -> 3.356772724 | N7: =CF/(1+z_Spread+Path_2)^Payment_number -> 3.359780196 | O7: =CF/(1+z_Spread+Path_3)^Payment_number -> 3.362793061
A8: 4 | B8: 2 yr | C8: =D8/100000 -> 0.00339 | D8: 339 | G8: 2 | H8: 3.375 | I8: 0.00199 | J8: =C7 -> 0.00109 | K8: =SpotRate-increment -> 0.00019 | L8: =L7 -> 0.00383 | M8: 3.336055316 | N8: 3.342033492 | O8: 3.348027751
A9: 6 | B9: 3 yr | C9: 0.00659 | D9: 659 | G9: 3 | H9: 3.375 | I9: 0.00314 | J9: =TREND(C7:C8,A7:A8,G9) -> 0.00224 | K9: 0.00134 | L9: =L8 -> 0.00383 | M9: 3.305401204 | N9: 3.314279879 | O9: 3.323190382
A10: 10 | B10: 5 yr | C10: 0.01399 | D10: 1399 | G10: 4 | H10: 3.375 | I10: 0.00429 | J10: =C8 -> 0.00339 | K10: 0.00249 | L10: 0.00383 | M10: 3.267569654 | N10: 3.279264246 | O10: 3.291011203
A11: 14 | B11: 7 yr | C11: 0.01971 | D11: 1971 | G11: 5 | H11: 3.375 | I11: 0.00589 | J11: =TREND(C8:C9,A8:A9,G11) -> 0.00499 | K11: 0.00409 | L11: 0.00383 | M11: 3.215651564 | N11: 3.230021099 | O11: 3.244467757
A12: 20 | B12: 10 yr | C12: 0.02569 | D12: 2569 | G12: 6 | H12: 3.375 | I12: 0.00749 | J12: =C9 -> 0.00659 | K12: 0.00569 | L12: 0.00383 | M12: 3.154584762 | N12: 3.171481435 | O12: 3.188483788
A13: 40 | B13: 20 yr | C13: 0.03301 | D13: 3301 | G13: 7 | H13: 3.375 | I13: 0.00934 | J13: =TREND($C$9:$C$10,$A$9:$A$10,G13) -> 0.00844 | K13: 0.00754 | L13: 0.00383 | M13: 3.079622786 | N13: 3.098840435 | O13: 3.118195262
G14: 8 | H14: 3.375 | I14: 0.01119 | J14: =TREND($C$9:$C$10,$A$9:$A$10,G14) -> 0.01029 | K14: 0.00939 | L14: 0.00383 | M14: 2.995552805 | N14: 3.016886663 | O14: 3.038391602
G15: 9 | H15: 3.375 | I15: 0.01304 | J15: 0.01214 | K15: 0.01124 | L15: 0.00383 | M15: 2.903252867 | N15: 2.926481751 | O15: 2.949917322
G16: 10 | H16: 3.375 | I16: 0.01489 | J16: =C10 -> 0.01399 | K16: 0.01309 | L16: 0.00383 | M16: 2.803660687 | N16: 2.828550734 | O16: 2.853684059
G17: 11 | H17: 3.375 | I17: 0.01632 | J17: =TREND($C$10:$C$11,$A$10:$A$11,G17) -> 0.01542 | K17: 0.01452 | L17: 0.00383 | M17: 2.710000707 | N17: 2.736439532 | O17: 2.763159992
G18: 12 | H18: 3.375 | I18: 0.01775 | J18: =TREND($C$10:$C$11,$A$10:$A$11,G18) -> 0.01685 | K18: 0.01595 | L18: 0.00383 | M18: 2.612192595 | N18: 2.639967119 | O18: 2.668061853
G19: 13 | H19: 3.375 | I19: 0.01918 | J19: 0.01828 | K19: 0.01738 | L19: 0.00383 | M19: 2.510934305 | N19: 2.539829085 | O19: 2.569082267
G20: 14 | H20: 3.375 | I20: 0.02061 | J20: =C11 -> 0.01971 | K20: 0.01881 | L20: 0.00383 | M20: 2.406924084 | N20: 2.436723788 | O20: 2.466919139
G21: 15 | H21: 3.375 | I21: 0.02160666667 | J21: =TREND($C$11:$C$12,$A$11:$A$12,G21) -> 0.02070666667 | K21: 0.01980666667 | L21: 0.00383 | M21: 2.315480562 | N21: 2.346179255 | O21: 2.377312469
G22: 16 | H22: 3.375 | I22: 0.02260333333 | J22: =TREND($C$11:$C$12,$A$11:$A$12,G22) -> 0.02170333333 | K22: 0.02080333333 | L22: 0.00383 | M22: 2.223216827 | N22: 2.254640383 | O22: 2.286536264
G23: 17 | H23: 3.375 | I23: 0.0236 | J23: =TREND($C$11:$C$12,$A$11:$A$12,G23) -> 0.0227 | K23: 0.0218 | L23: 0.00383 | M23: 2.130520187 | N23: 2.162498401 | O23: 2.194985278
G24: 18 | H24: 3.375 | I24: 0.02459666667 | J24: =TREND($C$11:$C$12,$A$11:$A$12,G24) -> 0.02369666667 | K24: 0.02279666667 | L24: 0.00383 | M24: 2.037763842 | N24: 2.070131567 | O24: 2.103042461
G25: 19 | H25: 3.375 | I25: 0.02559333333 | J25: =TREND($C$11:$C$12,$A$11:$A$12,G25) -> 0.02469333333 | K25: 0.02379333333 | L25: 0.00383 | M25: 1.945304658 | N25: 1.977902834 | O25: 2.011076527
G26: 20 | H26: 3.375 | I26: 0.02659 | J26: =C12 -> 0.02569 | K26: 0.02479 | L26: 0.00383 | M26: 1.853481203 | N26: 1.886157782 | O26: 1.919439781
G27: 21 | H27: 3.375 | I27: 0.026956 | J27: =TREND($C$12:$C$13,$A$12:$A$13,G27) -> 0.026056 | K27: 0.025156 | L27: 0.00383 | M27: 1.785397976 | N27: 1.818450705 | O27: 1.852145037
G28: 22 | H28: 3.375 | I28: 0.027322 | J28: 0.026422 | K28: 0.025522 | L28: 0.00383 | M28: 1.718599302 | N28: 1.751933104 | O28: 1.785943429
G29: 23 | H29: 3.375 | I29: 0.027688 | J29: 0.026788 | K29: 0.025888 | L29: 0.00383 | M29: 1.653130461 | N29: 1.686654551 | O29: 1.720888664
G30: 24 | H30: 3.375 | I30: 0.028054 | J30: 0.027154 | K30: 0.026254 | L30: 0.00383 | M30: 1.589032183 | N30: 1.622660134 | O30: 1.657030042
G31: 25 | H31: 3.375 | I31: 0.02842 | J31: 0.02752 | K31: 0.02662 | L31: 0.00383 | M31: 1.526340713 | N31: 1.559990502 | O31: 1.59441249
G32: 26 | H32: 3.375 | I32: 0.028786 | J32: 0.027886 | K32: 0.026986 | L32: 0.00383 | M32: 1.465087886 | N32: 1.498681924 | O32: 1.533076595
G33: 27 | H33: 3.375 | I33: 0.029152 | J33: 0.028252 | K33: 0.027352 | L33: 0.00383 | M33: 1.405301217 | N33: 1.438766357 | O33: 1.473058664
G34: 28 | H34: 3.375 | I34: 0.029518 | J34: 0.028618 | K34: 0.027718 | L34: 0.00383 | M34: 1.347004002 | N34: 1.380271537 | O34: 1.414390787
G35: 29 | H35: 3.375 | I35: 0.029884 | J35: 0.028984 | K35: 0.028084 | L35: 0.00383 | M35: 1.290215429 | N35: 1.323221065 | O35: 1.357100919
G36: 30 | H36: 3.375 | I36: 0.03025 | J36: 0.02935 | K36: 0.02845 | L36: 0.00383 | M36: 1.234950698 | N36: 1.267634522 | O36: 1.301212968
G37: 31 | H37: 3.375 | I37: 0.030616 | J37: 0.029716 | K37: 0.028816 | L37: 0.00383 | M37: 1.181221149 | N37: 1.21352758 | O37: 1.246746898
G38: 32 | H38: 3.375 | I38: 0.030982 | J38: 0.030082 | K38: 0.029182 | L38: 0.00383 | M38: 1.129034404 | N38: 1.160912124 | O38: 1.193718839
G39: 33 | H39: 3.375 | I39: 0.031348 | J39: 0.030448 | K39: 0.029548 | L39: 0.00383 | M39: 1.078394508 | N39: 1.109796389 | O39: 1.142141205
G40: 34 | H40: 3.375 | I40: 0.031714 | J40: 0.030814 | K40: 0.029914 | L40: 0.00383 | M40: 1.029302079 | N40: 1.060185098 | O40: 1.09202282
G41: 35 | H41: 3.375 | I41: 0.03208 | J41: 0.03118 | K41: 0.03028 | L41: 0.00383 | M41: 0.9817544652 | N41: 1.012079603 | O41: 1.043369057
G42: 36 | H42: 3.375 | I42: 0.032446 | J42: 0.031546 | K42: 0.030646 | L42: 0.00383 | M42: 0.9357459034 | N42: 0.9654780387 | O42: 0.996181972
G43: 37 | H43: 3.375 | I43: 0.032812 | J43: 0.031912 | K43: 0.031012 | L43: 0.00383 | M43: 0.8912676822 | N43: 0.9203754776 | O43: 0.9504604535
G44: 38 | H44: 3.375 | I44: 0.033178 | J44: 0.032278 | K44: 0.031378 | L44: 0.00383 | M44: 0.8483083074 | N44: 0.8767640851 | O44: 0.9062003698
G45: 39 | H45: 3.375 | I45: 0.033544 | J45: 0.032644 | K45: 0.031744 | L45: 0.00383 | M45: 0.806853669 | N45: 0.8346332819 | O45: 0.863394723
G46: 40 | H46: =((CouponRate/2)*ParValue)+ParValue -> 103.375 | I46: 0.03391 | J46: =C13 -> 0.03301 | K46: 0.03211 | L46: 0.00383 | M46: 23.48947119 | N46: 24.31900415 | O46: 25.17859098
L48: Bond Price | M48: =SUM(M7:M46) -> 101.5503566 | N48: =SUM(N7:N46) -> 103.4391099 | O48: 105.3798651
L49: Weights | M49: =M50/1000 -> 0.564 | N49: =N50/1000 -> 0.359 | O49: =100%-(M49+N49) -> 0.077
M50: 564 | N50: 359
J51: Weighted Average Price | M51: =SUMPRODUCT(M48:O48,M49:O49) -> 102.5232912
M52: AveragePrice
